bitfinex-derivatives/quotes_SOLF0:USTF0_20220101
["timestamp","ask_amount","ask_price","bid_price","bid_amount"]
[1641066006601,12.07498807,176.75,176.69,27.66479]
[1641066007902,15.07498807,176.75,176.69,27.66479]
[1641066008101,12.07498807,176.75,176.69,27.66479]
[1641066010004,12.07498807,176.74,176.69,27.66479]
[1641066011604,12.07498807,176.76,176.69,27.66479]
[1641066012205,12.07498807,176.75,176.69,27.66479]
[1641066012808,12.07498807,176.74,176.69,27.66479]
[1641066013707,15.07498807,176.75,176.69,27.66479]
[1641066013907,12.07498807,176.75,176.69,27.66479]
[1641066016409,13.02317002,176.78,176.69,27.66479]
[1641066016410,12.07498807,176.77,176.69,27.66479]
[1641066017813,15.07498807,176.77,176.69,27.66479]
[1641066018014,12.07498807,176.77,176.69,27.66479]
[1641066018214,12.07498807,176.76,176.69,27.66479]
[1641066019115,39.73977807,176.76,176.69,27.66479]
[1641066019315,27.66479,176.76,176.69,27.66479]
[1641066019816,27.66479,176.76,176.69,39.72970964]
[1641066021220,39.73977807,176.76,176.69,27.66479]
[1641066025926,12.07498807,176.76,176.71,3.0]
[1641066026124,12.07498807,176.78,176.71,5.781]
[1641066026525,12.07498807,176.78,176.72,5.65179303]
[1641066027127,39.73977807,176.79,176.72,5.65179303]
[1641066027326,39.73977807,176.79,176.72,33.31658303]
[1641066029128,2.75271437,176.78,176.73,1.26411714]
[1641066031130,2.75271437,176.8,176.73,19.37791554]
[1641066033233,2.75271437,176.8,176.73,1.26411714]
[1641066035436,2.75271437,176.8,176.75,27.66479]
[1641066036239,2.75271437,176.8,176.76,1.26411714]
[1641066038240,2.75271437,176.8,176.73,19.3778208]
[1641066039240,2.75271437,176.8,176.75,5.65067526]
[1641066039442,2.75271437,176.8,176.75,33.31546526]
[1641066040443,2.75271437,176.8,176.75,5.65067526]
[1641066040842,14.82770244,176.8,176.76,1.26411714]
[1641066042342,12.04957216,176.82,176.75,5.65067526]
[1641066042843,12.04957216,176.82,176.76,1.26415958]
[1641066043646,2.75237617,176.82,176.75,33.31546526]
[1641066045050,27.66479,176.84,176.75,33.31546526]
[1641066045249,14.80097947,176.83,176.76,1.26417152]
[1641066045848,39.71350273,176.84,176.76,1.26417152]
[1641066046450,12.04871273,176.81,176.76,1.26417152]
[1641066047949,12.05124295,176.8,176.75,33.31562491]
[1641066048550,12.7707865,176.83,176.76,1.26409219]
[1641066048551,4.01638652,176.79,176.76,1.26409219]
[1641066049553,14.80178332,176.83,176.75,33.31562491]
[1641066049754,4.01657847,176.78,176.75,33.31562491]
[1641066050258,4.01646677,176.79,176.76,1.26415361]
[1641066051057,14.80202405,176.83,176.75,33.31562491]
[1641066051258,4.01663641,176.77,176.75,33.31562491]
[1641066051958,2.75262375,176.83,176.75,33.31562491]
[1641066052158,4.01610565,176.79,176.76,1.26418973]
[1641066052760,27.66479,176.84,176.76,1.26418973]
[1641066053160,30.66479,176.84,176.76,1.26418973]
[1641066053360,27.66479,176.84,176.76,1.26418973]
[1641066053762,4.01617751,176.79,176.75,33.31562491]
[1641066054562,4.0164686,176.78,176.76,1.26415343]
[1641066055263,4.01618702,176.79,176.75,33.31562491]
[1641066056061,4.01635258,176.78,176.76,1.26416503]
[1641066056866,3.0,176.82,176.75,27.66479]
[1641066057066,4.01604359,176.8,176.75,12.06491964]
[1641066057467,27.66479,176.78,176.75,12.06491964]
[1641066057665,27.66479,176.78,176.72,1.26409339]
[1641066058067,27.66479,176.78,176.73,5.65147362]
[1641066058566,12.05120698,176.79,176.73,5.65147362]
[1641066058765,4.01674576,176.77,176.73,5.65147362]
[1641066059666,4.01616871,176.79,176.74,13.32910306]
[1641066060566,27.66479,176.81,176.74,13.32910306]
[1641066060767,2.75198529,176.8,176.74,13.32910306]
[1641066061469,4.0163391,176.79,176.74,13.32910306]
[1641066061966,27.66479,176.81,176.74,13.32910306]
[1641066062168,4.01658312,176.77,176.74,1.26418342]
[1641066062770,4.01658312,176.77,176.73,5.65147362]
[1641066062771,34.9914,176.8,176.73,5.65147362]
[1641066062971,34.9914,176.8,176.73,23.76511645]
[1641066063769,34.9914,176.8,176.74,1.26415817]
[1641066063770,4.01642122,176.78,176.74,1.26415817]
[1641066063971,4.01642122,176.78,176.76,5.65051561]
[1641066064169,4.01642122,176.78,176.76,12.17451561]
[1641066064370,34.9914,176.8,176.76,12.17451561]
[1641066064570,4.01621919,176.79,176.77,1.26415817]
[1641066065570,27.66479,176.81,176.76,5.65051561]
[1641066065771,31.67246982,176.81,176.76,5.65051561]
[1641066066572,27.66479,176.81,176.77,1.26154566]
[1641066067271,31.67245331,176.81,176.77,1.26154566]
[1641066067971,27.66479,176.81,176.76,5.65051561]
[1641066068875,31.67265501,176.81,176.77,1.26152255]
[1641066069575,4.01606402,176.8,176.76,17.71543525]
[1641066070478,27.66479,176.81,176.76,17.71543525]
[1641066070776,27.66479,176.81,176.77,1.26415831]
[1641066070777,4.01641986,176.79,176.77,1.26415831]
[1641066071176,4.01641986,176.79,176.76,5.65051561]
[1641066071377,4.01607447,176.8,176.76,17.71543525]
[1641066072079,27.66479,176.81,176.76,17.71543525]
[1641066072278,27.66479,176.81,176.77,1.26420489]
[1641066072880,4.0160387,176.8,176.77,1.26420489]
[1641066073483,27.66479,176.81,176.77,1.26420489]
[1641066074486,4.0162289,176.79,176.77,1.26420489]
[1641066075087,4.01589266,176.8,176.76,12.06491964]
[1641066075685,27.66479,176.78,176.76,12.06491964]
[1641066075886,27.66479,176.78,176.73,1.26411624]
[1641066076486,27.66479,176.78,176.71,17.71687239]
[1641066076688,4.01684326,176.76,176.72,1.26411596]
[1641066077388,4.0169207,176.75,176.72,1.26411596]
[1641066077888,4.0169207,176.75,176.72,1.596e-05]
[1641066078088,30.66479,176.78,176.71,12.06491964]
[1641066078291,4.01740331,176.73,176.68,12.06491964]
[1641066079090,15.05220992,176.77,176.68,12.06491964]
[1641066079293,15.05220992,176.77,176.65,59.87518473]
[1641066079294,6.99029274,176.76,176.65,27.66479]
[1641066079691,27.66479,176.72,176.65,27.66479]
[1641066080193,27.66479,176.72,176.63,22.61420172]
[1641066080590,27.66479,176.72,176.61,42.72970964]
[1641066080791,21.23565145,176.72,176.62,5.65498911]
[1641066082194,3.0,176.7,176.61,27.66479]
[1641066082594,34.6378,176.71,176.61,27.66479]
[1641066082595,37.6378,176.71,176.61,27.66479]
[1641066082794,3.0,176.7,176.61,27.66479]
[1641066082995,3.0,176.68,176.58,17.72102824]
[1641066083395,4.605,176.7,176.54,32.21039473]
[1641066083396,8.59529274,176.7,176.56,12.06491964]
[1641066083596,3.0,176.66,176.56,12.06491964]
[1641066083797,27.66479,176.63,176.56,12.06491964]
[1641066084400,27.66479,176.63,176.54,12.06491964]
[1641066085304,27.66479,176.63,176.53,18.07333843]
[1641066087206,27.66479,176.63,176.52,45.38773838]
[1641066088710,27.66479,176.63,176.52,33.32281874]
[1641066091513,27.66479,176.63,176.52,27.66479]
[1641066092112,27.66479,176.63,176.52,33.32281874]
[1641066092312,3.0,176.61,176.52,33.32281874]
[1641066092522,3.0,176.61,176.52,27.66479]
[1641066092714,27.66479,176.63,176.52,27.66479]
[1641066095616,3.99029274,176.59,176.55,12.06491964]
[1641066096320,3.99029274,176.6,176.55,12.06491964]
[1641066097120,3.99029274,176.59,176.55,12.06491964]
[1641066099522,3.0,176.58,176.55,12.06491964]
[1641066099722,3.99029274,176.59,176.54,12.06491964]
[1641066100624,3.99029274,176.58,176.54,12.06491964]
[1641066101125,27.66479,176.6,176.53,6.04910005]
[1641066101126,3.99029274,176.59,176.55,12.06491964]
[1641066102126,3.99029274,176.59,176.58,5.65626856]
[1641066102827,31.65508274,176.63,176.58,17.7211882]
[1641066104328,27.66479,176.63,176.58,5.65626856]
[1641066109136,31.65508274,176.63,176.58,17.7211882]
[1641066109736,3.99029274,176.62,176.58,17.7211882]
[1641066111338,27.66479,176.63,176.6,12.06491964]
[1641066111937,3.99029274,176.61,176.6,12.06491964]
[1641066112138,3.99029274,176.61,176.58,5.65626856]
[1641066113238,3.99029274,176.61,176.57,12.06491964]
[1641066113440,3.99029274,176.62,176.58,12.06491964]
[1641066114437,27.66479,176.63,176.55,39.72970964]
[1641066114438,3.99029274,176.59,176.55,39.72970964]
[1641066115038,39.71699992,176.63,176.55,39.72970964]
[1641066115039,3.99029274,176.6,176.56,18.11392739]
[1641066116542,3.99029274,176.59,176.54,12.06491964]
[1641066117642,3.99029274,176.59,176.55,12.06491964]
[1641066119147,3.99029274,176.6,176.56,12.06491964]
[1641066122753,3.99029274,176.62,176.58,12.06491964]
[1641066123850,3.0,176.61,176.58,12.06491964]
[1641066124252,3.0,176.6,176.58,12.06491964]
[1641066124452,3.0,176.6,176.57,12.06127376]
[1641066125052,40.97049274,176.61,176.57,12.06127376]
[1641066125252,3.0,176.6,176.53,33.47365276]
[1641066125452,2.75714758,176.59,176.53,1.26325803]
[1641066126255,4.02121977,176.57,176.53,7.31058702]
[1641066127060,7.02121977,176.6,176.51,1.26325803]
[1641066127458,3.0,176.59,176.51,1.26325803]
[1641066127659,3.0,176.59,176.48,1.26325803]
[1641066127861,3.0,176.58,176.48,1.26325803]
[1641066128158,27.66479,176.57,176.48,1.26325803]
[1641066130463,33.4253,176.56,176.48,1.26325803]
[1641066133067,33.4253,176.56,176.46,1.26325803]
[1641066133673,33.4253,176.56,176.46,7.27793531]
[1641066134371,37.44651977,176.56,176.48,32.21039473]
[1641066135672,33.4253,176.56,176.48,32.21039473]
[1641066137675,40.44651977,176.56,176.48,32.21039473]
[1641066138074,37.44651977,176.56,176.48,32.21039473]
[1641066140276,33.4253,176.56,176.49,32.21039473]
[1641066140876,37.44651977,176.56,176.48,32.21039473]
[1641066142179,33.4253,176.56,176.47,33.47365276]
[1641066142579,33.4253,176.56,176.48,27.66479]
[1641066142779,37.4466365,176.56,176.48,59.87518473]
[1641066143883,33.4253,176.56,176.49,7.27793531]
[1641066144580,4.0216636,176.54,176.49,7.27793531]
[1641066145483,3.0,176.53,176.46,52.52551632]
[1641066145681,36.4253,176.56,176.46,52.52551632]
[1641066145881,4.02190591,176.54,176.47,1.26325803]
[1641066146782,4.02171927,176.55,176.47,1.26325803]
[1641066147283,4.02204777,176.53,176.47,1.26325803]
[1641066147986,33.4253,176.56,176.47,1.26325803]
[1641066149087,4.02208532,176.54,176.46,49.30852864]
[1641066149287,4.02208532,176.54,176.46,52.52605425]
[1641066149686,33.4253,176.56,176.46,52.52605425]
[1641066149888,4.02192651,176.55,176.47,33.47365276]
[1641066150588,33.4253,176.56,176.47,1.26325803]
[1641066152091,26.99040221,176.56,176.47,1.26325803]
[1641066153691,26.99040221,176.56,176.46,7.27793531]
[1641066154896,26.99040221,176.56,176.49,12.02094199]
[1641066156095,26.99040221,176.56,176.48,12.02094199]
[1641066157195,4.00704882,176.55,176.5,12.02094199]
[1641066157997,4.00704882,176.54,176.5,12.02094199]
[1641066161009,4.00704882,176.55,176.5,12.02094199]
[1641066162009,4.00704882,176.55,176.51,12.02094199]
[1641066162610,4.00704882,176.56,176.52,12.02094199]
[1641066163811,7.00704882,176.57,176.52,12.02094199]
[1641066164013,4.00704882,176.57,176.52,12.02094199]
[1641066164417,3.0,176.56,176.52,12.02094199]
[1641066164819,27.66479,176.56,176.52,12.02094199]
[1641066165122,31.67183882,176.56,176.52,12.02094199]
[1641066166220,27.66479,176.56,176.52,12.02094199]
[1641066167124,31.67183882,176.56,176.52,12.02094199]
[1641066170126,38.09683882,176.56,176.52,12.02094199]
[1641066171229,4.00704882,176.55,176.51,12.02094199]
[1641066172028,31.67183882,176.56,176.52,12.02094199]
[1641066172830,4.00704882,176.56,176.52,12.02094199]
[1641066173428,36.7316,176.58,176.5,12.02094199]
[1641066174228,36.7316,176.58,176.5,19.2988773]
[1641066174830,4.00704882,176.57,176.5,1.26325803]
[1641066175431,4.00704882,176.57,176.48,13.28420002]
[1641066176833,31.67183882,176.57,176.48,13.28420002]
[1641066177235,4.00704882,176.57,176.48,13.28420002]
[1641066177434,12.02094199,176.61,176.54,3.0]
[1641066177635,12.02094199,176.61,176.56,3.0]
[1641066178035,4.00735197,176.6,176.59,3.0]
[1641066178234,12.02094199,176.64,176.59,8.65594864]
[1641066178835,12.02094199,176.64,176.63,27.66479]
[1641066179837,32.21039473,176.68,176.63,27.66479]
[1641066180037,12.02094199,176.71,176.63,27.66479]
[1641066180839,27.66479,176.68,176.6,28.92804803]
[1641066181238,27.66479,176.68,176.64,1.26325803]
[1641066182038,2.7565867,176.67,176.61,1.26325803]
[1641066185447,12.02094199,176.68,176.61,1.26325803]
[1641066185644,3.0,176.66,176.61,1.26325803]
[1641066185844,3.0,176.67,176.61,1.26325803]
[1641066186045,15.02094199,176.68,176.61,1.26325803]
[1641066186244,2.7565867,176.65,176.61,1.26325803]
[1641066187246,12.02094199,176.65,176.58,1.26325803]
[1641066188048,2.7565867,176.65,176.58,1.26325803]
[1641066188947,2.7565867,176.65,176.58,19.33128481]
[1641066191148,2.7565867,176.65,176.59,12.02094199]
[1641066192049,2.7565867,176.65,176.58,19.33128481]
[1641066192646,2.7565867,176.65,176.58,13.28420002]
[1641066192847,14.77752869,176.65,176.58,1.26325803]
[1641066194148,2.7565867,176.65,176.58,19.33134364]
[1641066196950,5.7565867,176.65,176.58,19.33134364]
[1641066197150,2.7565867,176.65,176.58,19.33134364]
[1641066198053,2.7565867,176.65,176.58,23.57634364]
[1641066198253,2.7565867,176.65,176.59,12.02094199]
[1641066198852,2.7565867,176.65,176.6,12.02094199]
[1641066199653,2.7565867,176.65,176.59,12.02094199]
[1641066200354,2.7565867,176.65,176.6,12.02094199]
[1641066200554,8.67e-05,176.65,176.61,8.65530892]
[1641066200757,12.02094199,176.68,176.61,5.65530892]
[1641066200955,12.02094199,176.68,176.63,27.66479]
[1641066201154,39.68573199,176.72,176.63,39.68573199]
[1641066202056,12.02094199,176.71,176.63,39.68573199]
[1641066203356,39.68573199,176.72,176.64,18.06800378]
[1641066203958,39.68573199,176.72,176.64,12.02094199]
[1641066204156,12.02094199,176.71,176.63,27.66479]
[1641066205460,12.02094199,176.7,176.63,27.66479]
[1641066206061,12.02094199,176.71,176.63,39.68573199]
[1641066206862,12.02094199,176.71,176.63,27.66479]
[1641066207662,15.02094199,176.71,176.63,27.66479]
[1641066208761,12.02094199,176.71,176.63,27.66479]
[1641066208961,12.02094199,176.7,176.63,27.66479]
[1641066212364,12.02094199,176.69,176.63,27.66479]
[1641066212564,12.02094199,176.69,176.63,21.23382093]
[1641066214669,12.02094199,176.71,176.63,21.23382093]
[1641066215269,12.02094199,176.7,176.63,21.23382093]
[1641066217172,12.02094199,176.69,176.63,21.23382093]
[1641066218775,13.02839334,176.71,176.63,21.23382093]
[1641066218776,15.02094199,176.7,176.63,21.23382093]
[1641066219277,12.02094199,176.69,176.63,21.23382093]
[1641066222680,12.02094199,176.71,176.63,21.23382093]
[1641066223284,12.02094199,176.7,176.63,21.23382093]
[1641066225689,39.68573199,176.72,176.63,39.30290063]
[1641066226389,39.68573199,176.72,176.64,12.02094199]
[1641066227192,27.66479,176.72,176.64,12.02094199]
[1641066228894,39.68573199,176.72,176.64,12.02094199]
[1641066229493,39.68573199,176.72,176.63,39.30290063]
[1641066230496,12.02094199,176.7,176.63,21.23382093]
[1641066230896,17.76094199,176.7,176.63,21.23382093]
[1641066231396,12.02094199,176.69,176.63,21.23382093]
[1641066231595,12.02094199,176.69,176.63,26.88849027]
[1641066231997,5.74,176.7,176.63,44.94729295]
[1641066232896,5.74,176.7,176.63,38.90943226]
[1641066233996,5.74,176.7,176.63,12.02094199]
[1641066234197,3.0,176.69,176.59,32.21039473]
[1641066234397,5.74,176.7,176.6,12.03768514]
[1641066234398,33.05,176.68,176.6,12.03768514]
[1641066234598,3.0,176.64,176.6,12.03768514]
[1641066235200,3.0,176.63,176.6,12.03768514]
[1641066235399,3.0,176.64,176.6,12.03768514]
[1641066235599,3.0,176.64,176.56,59.87518473]
[1641066235800,30.66479,176.65,176.56,27.66479]
[1641066237004,27.66479,176.65,176.56,27.66479]
[1641066237203,27.66479,176.65,176.56,33.40879]
[1641066238302,27.66479,176.65,176.57,6.04875782]
[1641066239203,4.02019272,176.62,176.57,6.04875782]
[1641066241206,4.02019272,176.62,176.55,7.31197868]
[1641066242807,4.02019272,176.61,176.55,7.31197868]
[1641066243108,4.02019272,176.62,176.55,7.31197868]
[1641066243508,4.02019272,176.62,176.57,3.0]
[1641066243707,4.02019272,176.62,176.55,7.31197868]
[1641066244307,4.02019272,176.62,176.6,5.65546884]
[1641066244707,4.02019272,176.64,176.6,5.65546884]
[1641066245409,4.02019272,176.64,176.59,27.66479]
[1641066245613,4.02019272,176.64,176.56,37.86730323]
[1641066245810,35.1052,176.67,176.61,1.26322086]
[1641066245811,3.0,176.63,176.61,1.26322086]
[1641066246010,3.0,176.64,176.61,1.26322086]
[1641066246412,3.0,176.63,176.58,6.04875782]
[1641066246612,5.7581545,176.63,176.57,1.26242872]
[1641066246811,3.0,176.62,176.57,1.26242872]
[1641066247412,27.66479,176.58,176.57,1.26242872]
[1641066251222,27.66479,176.58,176.5,38.25915255]
[1641066251422,31.68571414,176.58,176.5,6.04875782]
[1641066252219,27.66479,176.58,176.5,38.25915255]
[1641066252420,27.66479,176.58,176.5,48.07760355]
[1641066253522,31.68571414,176.58,176.5,6.04875782]
[1641066253922,4.02092414,176.58,176.51,8.65850898]
[1641066254122,4.02092414,176.57,176.55,3.0]
[1641066254322,4.02092414,176.57,176.55,8.65706851]
[1641066254523,4.02092414,176.57,176.55,5.65706851]
[1641066254925,4.02092414,176.61,176.55,5.65706851]
[1641066255325,4.02092414,176.61,176.53,38.25915255]
[1641066255524,4.02092414,176.62,176.53,65.92394255]
[1641066256227,4.02092414,176.6,176.54,6.04875782]
[1641066257632,4.02092414,176.6,176.53,27.66479]
[1641066257829,34.6513,176.62,176.53,27.66479]
[1641066260733,34.6513,176.62,176.52,5.65818881]
[1641066260931,4.02092414,176.63,176.56,3.0]
[1641066261132,4.02092414,176.63,176.53,3.0]
[1641066261336,4.02092414,176.63,176.56,5.6567485]
[1641066262633,4.02092414,176.63,176.56,11.70324614]
[1641066263334,4.02092414,176.63,176.58,3.0]
[1641066263534,32.9377,176.65,176.59,27.66479]
[1641066264335,32.9377,176.65,176.6,6.04649764]
[1641066264535,4.02092414,176.67,176.6,6.04649764]
[1641066264734,4.02092414,176.67,176.62,12.05766909]
[1641066265539,4.02092414,176.73,176.66,55.32958]
[1641066265739,4.02092414,176.73,176.67,3.0]
[1641066265936,4.02092414,176.73,176.69,3.0]
[1641066266539,4.02092414,176.79,176.69,3.0]
[1641066266738,37.49562414,176.79,176.67,3.0]
[1641066266937,37.49562414,176.79,176.74,12.5]
[1641066267138,4.02092414,176.79,176.74,12.5]
[1641066267539,4.02092414,176.8,176.74,12.5]
[1641066268739,41.56142414,176.82,176.74,12.5]
[1641066269343,38.56142414,176.82,176.74,12.5]
[1641066269645,4.02092414,176.78,176.74,12.5]
[1641066270341,4.02092414,176.79,176.74,12.5]
[1641066271241,4.02092414,176.81,176.74,12.5]
[1641066272441,4.02092414,176.8,176.74,12.5]
[1641066272642,4.02092414,176.8,176.74,6.07269453]
[1641066272841,4.02092414,176.79,176.74,6.07269453]
[1641066274846,4.02092414,176.78,176.74,6.07269453]
[1641066275946,46.59816909,176.82,176.74,6.07269453]
[1641066275947,7.02092414,176.77,176.74,6.07269453]
[1641066276245,4.02092414,176.77,176.74,6.07269453]
[1641066279256,4.02092414,176.77,176.7,27.66479]
[1641066279452,7.02092414,176.77,176.7,27.66479]
[1641066279653,4.02092414,176.77,176.7,27.66479]
[1641066279953,4.02092414,176.76,176.7,27.66479]
[1641066280758,4.02092414,176.75,176.7,27.66479]
[1641066285064,4.02092414,176.74,176.7,27.66479]
[1641066286065,4.02092414,176.75,176.7,27.66479]
[1641066286768,4.02092414,176.76,176.7,27.66479]
[1641066287266,4.02092414,176.76,176.66,33.31738171]
[1641066287465,12.05766909,176.74,176.66,45.3750508]
[1641066288368,4.0181186,176.7,176.67,1.26299793]
[1641066289468,4.0181186,176.69,176.67,1.26299793]
[1641066290170,4.0181186,176.7,176.67,1.26299793]
[1641066291472,4.0181186,176.69,176.67,1.26299793]
[1641066292475,4.0181186,176.73,176.67,1.26299793]
[1641066295580,4.0181186,176.71,176.67,19.36738501]
[1641066299083,4.0181186,176.71,176.67,13.32066702]
[1641066299384,4.0181186,176.7,176.67,1.26299793]
[1641066299885,4.0181186,176.69,176.67,1.26299793]
[1641066307191,4.0181186,176.7,176.67,1.26299793]
[1641066312499,4.0181186,176.71,176.67,1.26299793]
[1641066314502,4.0181186,176.69,176.67,1.26299793]
[1641066316506,4.0181186,176.7,176.67,1.26299793]
[1641066322111,4.0181186,176.71,176.67,1.26299793]
[1641066323308,4.0181186,176.7,176.67,1.26299793]
[1641066324110,4.0181186,176.71,176.67,1.26299793]
[1641066324711,4.0181186,176.71,176.67,13.32066702]
[1641066326209,4.0181186,176.7,176.67,1.26299793]
[1641066329314,4.0181186,176.69,176.67,1.26299793]
[1641066332115,4.0181186,176.68,176.66,1.26299793]
[1641066332718,3.0,176.67,176.63,12.05766909]
[1641066333017,4.0181186,176.67,176.62,12.05766909]
[1641066333515,27.66479,176.68,176.62,12.05766909]
[1641066333719,4.01935415,176.65,176.61,12.05766909]
[1641066334217,27.66479,176.68,176.61,12.05766909]
[1641066335421,55.32958,176.68,176.61,12.05766909]
[1641066335619,4.01929458,176.66,176.61,12.05766909]
[1641066335820,9.32029458,176.66,176.61,12.05766909]
[1641066336223,5.301,176.66,176.61,12.05766909]
[1641066336422,5.301,176.66,176.57,37.86682326]
[1641066336423,4.01962179,176.64,176.6,12.05766909]
[1641066337725,27.66479,176.65,176.59,12.05766909]
[1641066338326,4.01971883,176.64,176.59,12.05766909]
[1641066339224,4.01971883,176.64,176.57,5.65642853]
[1641066339225,31.68414056,176.65,176.61,12.05766909]
[1641066339625,27.66479,176.65,176.6,12.05766909]
[1641066340426,31.68414709,176.65,176.61,12.05766909]
[1641066341027,27.66479,176.65,176.61,12.05766909]
[1641066341725,31.68418837,176.65,176.61,12.05766909]
[1641066341926,34.68418837,176.65,176.61,12.05766909]
[1641066342131,31.68418837,176.65,176.61,12.05766909]
[1641066342529,4.01969009,176.63,176.59,12.05766909]
[1641066343229,27.66479,176.65,176.59,12.05766909]
[1641066343638,27.66479,176.65,176.57,5.65642853]
[1641066344631,21.2328473,176.65,176.57,5.65642853]
[1641066347737,3.99135431,176.63,176.59,12.05766909]
[1641066349337,3.0,176.61,176.59,12.05766909]
[1641066352040,3.0,176.61,176.58,12.05766909]
[1641066357148,3.0,176.61,176.58,18.1038665]
[1641066358953,3.0,176.61,176.58,12.05766909]
[1641066359650,3.0,176.61,176.57,12.05766909]
[1641066360250,3.0,176.61,176.58,12.05766909]
[1641066363959,3.0,176.61,176.59,12.05766909]
[1641066364562,3.0,176.61,176.58,12.05766909]
[1641066366562,3.0,176.61,176.56,11.70294591]
[1641066366563,3.0,176.61,176.59,12.05766909]
[1641066367066,3.0,176.61,176.57,12.05766909]
[1641066368566,6.99135431,176.61,176.57,12.05766909]
[1641066371171,3.0,176.61,176.57,12.05766909]
[1641066371875,3.99135431,176.62,176.57,12.05766909]
[1641066372474,3.99135431,176.62,176.58,12.05766909]
[1641066373174,3.99135431,176.63,176.59,12.05766909]
[1641066375377,3.99135431,176.64,176.6,12.05766909]
[1641066376682,3.99135431,176.64,176.59,19.36622964]
[1641066382995,3.99135431,176.64,176.59,13.32003223]
[1641066383191,3.99135431,176.63,176.59,1.26236314]
[1641066383992,3.99135431,176.62,176.59,1.26236314]
[1641066389299,3.99135431,176.61,176.59,1.26236314]
[1641066391601,3.99135431,176.62,176.57,12.05766909]
[1641066392201,3.99135431,176.63,176.58,12.05766909]
[1641066393103,3.99135431,176.62,176.58,12.05766909]
[1641066394507,3.99135431,176.61,176.57,12.05766909]
[1641066396011,9.55935431,176.61,176.57,12.05766909]
[1641066397211,9.55935431,176.61,176.56,19.36636981]
[1641066397814,3.99135431,176.6,176.56,19.36636981]
[1641066398414,3.99135431,176.6,176.56,1.26236314]
[1641066399519,3.99135431,176.6,176.56,19.36640132]
[1641066404324,3.99135431,176.62,176.57,12.05766909]
[1641066406130,27.66479,176.65,176.57,12.05766909]
[1641066406329,4.02014371,176.63,176.58,12.05766909]
[1641066406931,2.75782913,176.64,176.58,12.05766909]
[1641066407631,4.02014711,176.63,176.58,12.05766909]
[1641066408329,2.75783275,176.65,176.58,12.05766909]
[1641066409133,4.01534504,176.64,176.58,12.05766909]
[1641066409734,4.01545796,176.63,176.58,12.05766909]
[1641066409933,4.01545796,176.63,176.57,12.05766909]
[1641066410333,5.792,176.65,176.57,12.05766909]
[1641066411232,4.01545467,176.63,176.57,12.05766909]
[1641066411733,5.792,176.65,176.58,12.05766909]
[1641066412537,4.02013852,176.62,176.57,12.05766909]
[1641066413636,5.792,176.65,176.57,12.05766909]
[1641066413835,5.792,176.65,176.58,12.05766909]
[1641066414037,5.792,176.65,176.59,5.65594864]
[1641066414236,5.792,176.65,176.59,8.65594864]
[1641066414437,5.792,176.65,176.6,3.0]
[1641066414636,9.81148728,176.65,176.62,3.0]
[1641066414837,4.01958728,176.65,176.62,3.0]
[1641066415237,0.0001,176.65,176.62,3.0]
[1641066415438,0.0001,176.65,176.64,12.05766909]
[1641066416039,0.0001,176.65,176.64,39.72245909]
[1641066416439,0.0001,176.65,176.64,40.98482223]
[1641066416639,12.78527801,176.73,176.64,40.98482223]
[1641066416839,2.75622409,176.73,176.64,40.98482223]
[1641066417042,4.01858537,176.69,176.64,47.03119132]
[1641066417640,4.01858537,176.69,176.65,1.26236314]
[1641066418240,4.01858537,176.69,176.65,19.36564156]
[1641066419040,4.01858537,176.7,176.65,19.36564156]
[1641066420442,4.01858537,176.7,176.66,12.05766909]
[1641066421447,4.01858537,176.7,176.65,19.36564156]
[1641066422345,4.01858537,176.69,176.65,19.36564156]
[1641066423151,4.01858537,176.68,176.64,13.32003223]
[1641066424349,4.01858537,176.67,176.64,1.26236314]
[1641066425150,4.01858537,176.68,176.64,1.26236314]
[1641066425350,4.01858537,176.68,176.64,13.32003223]
[1641066426248,4.01858537,176.67,176.64,1.26236314]
[1641066431161,4.01858537,176.67,176.64,4.26236314]
[1641066431358,4.01858537,176.67,176.64,1.26236314]
[1641066431759,4.01858537,176.67,176.64,4.26236314]
[1641066431960,4.01858537,176.71,176.66,12.05766909]
[1641066432862,4.01858537,176.7,176.66,12.05766909]
[1641066433660,4.01858537,176.7,176.66,19.36548994]
[1641066434263,27.66479,176.74,176.65,27.66479]
[1641066436465,34.3796,176.76,176.64,3.0]
[1641066437065,27.66479,176.74,176.65,27.66479]
[1641066437665,37.3796,176.76,176.63,8.65450947]
[1641066437868,37.3796,176.76,176.63,5.65450947]
[1641066438366,41.39818537,176.76,176.64,1.25183677]
[1641066438568,38.39818537,176.76,176.64,1.25183677]
[1641066438767,41.39818537,176.76,176.64,1.25183677]
[1641066438968,41.39818537,176.76,176.65,12.05766909]
[1641066438969,4.01858537,176.7,176.65,12.05766909]
[1641066439167,4.01858537,176.7,176.65,39.72245909]